[Event "*** Titled Tuesday Blitz"]
[Site "Chess.com"]
[Date "2018.10.02"]
[Round "7"]
[White "tigra"]
[Black "GrigorGrigorov"]
[Result "1-0"]
[WhiteElo "2773"]
[BlackElo "2737"]
[TimeControl "180+2"]
[EndTime "14:32:55 PDT"]
[Termination "tigra won by resignation"]

1. e4 {[%clk 0:01:57.4]} 1... e6 {[%clk 0:03:00]} 2. d4 {[%clk 0:01:47.5]} 2...
d5 {[%clk 0:03:01.1]} 3. Nc3 {[%clk 0:01:48.5]} 3... Bb4 {[%clk 0:03:01.3]} 4.
a3 {[%clk 0:01:48.9]} 4... Bxc3+ {[%clk 0:03:01.3]} 5. bxc3 {[%clk 0:01:50.8]}
5... dxe4 {[%clk 0:03:02]} 6. Qg4 {[%clk 0:01:52]} 6... Nf6 {[%clk 0:03:02.1]}
7. Qxg7 {[%clk 0:01:52.9]} 7... Rg8 {[%clk 0:03:02.8]} 8. Qh6 {[%clk 0:01:54.6]}
8... Bd7 {[%clk 0:02:50.4]} 9. Ne2 {[%clk 0:01:51]} 9... Rg6 {[%clk 0:02:16.8]}
10. Qh4 {[%clk 0:01:50]} 10... c5 {[%clk 0:02:14]} 11. Bg5 {[%clk 0:01:45.7]}
11... Bc6 {[%clk 0:02:04.2]} 12. d5 {[%clk 0:01:45.3]} 12... exd5 {[%clk
0:01:53]} 13. Nf4 {[%clk 0:01:46.1]} 13... Nbd7 {[%clk 0:01:47.6]} 14. Nxg6
{[%clk 0:01:46.4]} 14... hxg6 {[%clk 0:01:30.5]} 15. g3 {[%clk 0:01:38.8]} 15...
Qa5 {[%clk 0:00:52.7]} 16. Bxf6 {[%clk 0:01:38.8]} 16... Nxf6 {[%clk 0:00:53.2]}
17. Qxf6 {[%clk 0:01:38.8]} 17... d4 {[%clk 0:00:54.6]} 18. Rb1 {[%clk
0:01:14.5]} 18... Qxc3+ {[%clk 0:00:54.7]} 19. Kd1 {[%clk 0:01:14.4]} 19... e3
{[%clk 0:00:35]} 20. fxe3 {[%clk 0:01:14.9]} 20... Bxh1 {[%clk 0:00:35.2]} 21.
Bd3 {[%clk 0:00:51.6]} 21... Rd8 {[%clk 0:00:25.4]} 22. Ke2 {[%clk 0:00:42.1]}
22... c4 {[%clk 0:00:21.6]} 23. Qe5+ {[%clk 0:00:18.6]} 23... Kf8 {[%clk
0:00:22]} 24. Qh8+ {[%clk 0:00:18.3]} 24... Ke7 {[%clk 0:00:22.9]} 25. Qe5+
{[%clk 0:00:19.8]} 25... Kf8 {[%clk 0:00:24.5]} 26. Qc5+ {[%clk 0:00:18]} 26...
Kg8 {[%clk 0:00:24.5]} 27. Qxc4 {[%clk 0:00:19.1]} 27... Qxc4 {[%clk 0:00:21.1]}
28. Bxc4 {[%clk 0:00:21]} 28... Be4 {[%clk 0:00:22.1]} 29. exd4 {[%clk
0:00:21.1]} 29... Rxd4 {[%clk 0:00:21.6]} 30. Rb4 {[%clk 0:00:20.9]} 30... Bxc2
{[%clk 0:00:19.8]} 31. Bxf7+ {[%clk 0:00:20.9]} 31... Kxf7 {[%clk 0:00:20.2]}
32. Rxd4 {[%clk 0:00:22.8]} 1-0

[Event "*** Titled Tuesday Blitz"]
[Site "Chess.com"]
[Date "2018.10.02"]
[Round "7"]
[White "ENEASZ"]
[Black "Kirill_Klukin"]
[Result "1-0"]
[WhiteElo "2594"]
[BlackElo "2602"]
[TimeControl "180+2"]
[EndTime "14:33:46 PDT"]
[Termination "ENEASZ won by resignation"]

1. e4 {[%clk 0:03:01.9]} 1... c5 {[%clk 0:03:00.4]} 2. c3 {[%clk 0:03:02.9]}
2... Nf6 {[%clk 0:03:00.9]} 3. e5 {[%clk 0:03:03.7]} 3... Nd5 {[%clk 0:03:02]}
4. d4 {[%clk 0:03:05.6]} 4... cxd4 {[%clk 0:03:03.2]} 5. Nf3 {[%clk 0:03:06.8]}
5... Nc6 {[%clk 0:03:04.2]} 6. cxd4 {[%clk 0:03:04.9]} 6... d6 {[%clk
0:03:04.9]} 7. Bc4 {[%clk 0:03:05.5]} 7... e6 {[%clk 0:03:05.7]} 8. O-O {[%clk
0:03:05.7]} 8... Be7 {[%clk 0:03:06]} 9. Qe2 {[%clk 0:03:06.5]} 9... O-O {[%clk
0:03:06.5]} 10. Rd1 {[%clk 0:03:07.6]} 10... Na5 {[%clk 0:03:07.2]} 11. Bxd5
{[%clk 0:03:07.9]} 11... exd5 {[%clk 0:03:07.9]} 12. Nc3 {[%clk 0:03:09.8]}
12... Be6 {[%clk 0:02:57.5]} 13. Bf4 {[%clk 0:03:10.2]} 13... Nc6 {[%clk
0:02:56.8]} 14. exd6 {[%clk 0:03:03]} 14... Bxd6 {[%clk 0:02:57.4]} 15. Bxd6
{[%clk 0:03:04.9]} 15... Qxd6 {[%clk 0:02:58.2]} 16. Ne5 {[%clk 0:03:06.3]}
16... Rfe8 {[%clk 0:02:56.9]} 17. Nxc6 {[%clk 0:03:05]} 17... Qxc6 {[%clk
0:02:54.5]} 18. Rac1 {[%clk 0:03:02.7]} 18... Rac8 {[%clk 0:02:55.3]} 19. Qd2
{[%clk 0:02:59.5]} 19... Qa6 {[%clk 0:02:49.8]} 20. Re1 {[%clk 0:02:59.1]} 20...
h6 {[%clk 0:02:47.1]} 21. h3 {[%clk 0:02:59.5]} 21... Qc4 {[%clk 0:02:33.1]} 22.
a3 {[%clk 0:02:44.1]} 22... Qb3 {[%clk 0:02:28.9]} 23. Ne2 {[%clk 0:02:38.6]}
23... Bf5 {[%clk 0:01:47.5]} 24. Rxc8 {[%clk 0:02:30.1]} 24... Rxc8 {[%clk
0:01:47.2]} 25. Rc1 {[%clk 0:02:31.3]} 25... Rxc1+ {[%clk 0:01:29.4]} 26. Nxc1
{[%clk 0:02:23]} 26... Qc4 {[%clk 0:01:29.5]} 27. Ne2 {[%clk 0:02:22.7]} 27...
b5 {[%clk 0:01:09.8]} 28. h4 {[%clk 0:02:14.7]} 28... a5 {[%clk 0:01:08.1]} 29.
Ng3 {[%clk 0:02:05]} 29... Be6 {[%clk 0:01:00]} 30. Kh2 {[%clk 0:01:52.7]} 30...
b4 {[%clk 0:01:00.9]} 31. axb4 {[%clk 0:01:53.9]} 31... axb4 {[%clk 0:01:02.8]}
32. Qf4 {[%clk 0:01:50.2]} 32... b3 {[%clk 0:00:59.7]} 33. Nh5 {[%clk
0:01:48.3]} 33... Qe2 {[%clk 0:00:25.5]} 34. f3 {[%clk 0:01:48.7]} 34... Qe1
{[%clk 0:00:22.1]} 35. Qg3 {[%clk 0:01:30.4]} 35... Qxg3+ {[%clk 0:00:21.5]} 36.
Kxg3 {[%clk 0:01:32.3]} 36... Kf8 {[%clk 0:00:19.5]} 37. Kf4 {[%clk 0:01:28.7]}
37... f6 {[%clk 0:00:17.5]} 38. Ke3 {[%clk 0:01:26.9]} 38... g5 {[%clk
0:00:10.2]} 39. Nxf6 {[%clk 0:01:10.6]} 39... gxh4 {[%clk 0:00:11]} 40. Kf4
{[%clk 0:01:12.1]} 40... Kf7 {[%clk 0:00:09.3]} 41. Ng4 {[%clk 0:01:12.5]} 41...
h5 {[%clk 0:00:09.2]} 42. Ne5+ {[%clk 0:01:10.3]} 42... Kf6 {[%clk 0:00:09.7]}
43. Nd3 {[%clk 0:01:02.8]} 43... Bf5 {[%clk 0:00:10.5]} 44. Nb4 {[%clk
0:01:03.3]} 44... Be6 {[%clk 0:00:07.7]} 45. Na6 {[%clk 0:00:58.2]} 45... Bf5
{[%clk 0:00:08.4]} 46. Nc7 {[%clk 0:00:58.8]} 46... Be6 {[%clk 0:00:09.5]} 47.
Nxe6 {[%clk 0:00:58]} 47... Kxe6 {[%clk 0:00:10.8]} 48. Kg5 {[%clk 0:00:59.4]}
1-0

[Event "*** Titled Tuesday Blitz"]
[Site "Chess.com"]
[Date "2018.10.02"]
[Round "7"]
[White "kasparik_garik"]
[Black "2165149677570"]
[Result "1-0"]
[WhiteElo "2561"]
[BlackElo "2340"]
[TimeControl "180+2"]
[EndTime "14:33:52 PDT"]
[Termination "kasparik_garik won by resignation"]

1. Nf3 {[%clk 0:02:58.6]} 1... c5 {[%clk 0:02:59.3]} 2. g3 {[%clk 0:02:58.9]}
2... Nc6 {[%clk 0:03:00.5]} 3. Bg2 {[%clk 0:03:00.8]} 3... g6 {[%clk 0:03:02.1]}
4. O-O {[%clk 0:03:02.5]} 4... Bg7 {[%clk 0:03:03.7]} 5. c3 {[%clk 0:03:02.3]}
5... e5 {[%clk 0:03:05]} 6. e4 {[%clk 0:03:02.9]} 6... Nge7 {[%clk 0:03:06.4]}
7. b4 {[%clk 0:02:58.6]} 7... cxb4 {[%clk 0:03:00.9]} 8. cxb4 {[%clk 0:02:59.2]}
8... Nxb4 {[%clk 0:03:02.8]} 9. Ba3 {[%clk 0:02:59.8]} 9... Qa5 {[%clk
0:02:52.5]} 10. d4 {[%clk 0:02:48.9]} 10... exd4 {[%clk 0:02:45.8]} 11. Nxd4
{[%clk 0:02:42.1]} 11... O-O {[%clk 0:02:42.6]} 12. Nc3 {[%clk 0:02:33.9]} 12...
Qxa3 {[%clk 0:02:39.1]} 13. Ndb5 {[%clk 0:02:34.4]} 13... Qa5 {[%clk 0:02:31.6]}
14. Rb1 {[%clk 0:02:35.2]} 14... Nbc6 {[%clk 0:02:27.3]} 15. Nd5 {[%clk
0:02:33.5]} 15... Nxd5 {[%clk 0:02:20.4]} 16. exd5 {[%clk 0:02:34.3]} 16... Ne5
{[%clk 0:02:08.6]} 17. d6 {[%clk 0:02:33.2]} 17... Nc6 {[%clk 0:02:04.9]} 18.
Nc7 {[%clk 0:02:28.9]} 18... Rb8 {[%clk 0:02:04.3]} 19. Rb5 {[%clk 0:02:05.2]}
19... Qa3 {[%clk 0:01:59.7]} 20. Re1 {[%clk 0:01:51.5]} 20... Be5 {[%clk
0:01:47.8]} 21. Rbxe5 {[%clk 0:01:42.8]} 21... Nxe5 {[%clk 0:01:48.6]} 22. Rxe5
{[%clk 0:01:43.4]} 22... b5 {[%clk 0:01:50]} 23. h4 {[%clk 0:01:38.8]} 23... Rb6
{[%clk 0:01:40.8]} 24. Ne8 {[%clk 0:01:32.6]} 24... Qc3 {[%clk 0:01:27.9]} 25.
Qe2 {[%clk 0:01:30.1]} 25... Ba6 {[%clk 0:01:14.4]} 26. Nf6+ {[%clk 0:01:04.9]}
26... Kg7 {[%clk 0:01:15.8]} 27. Nd5 {[%clk 0:01:05.8]} 27... Qa1+ {[%clk
0:01:12]} 28. Kh2 {[%clk 0:01:05.7]} 28... Rxd6 {[%clk 0:01:13.1]} 29. h5 {[%clk
0:00:44.8]} 29... Re6 {[%clk 0:01:04.3]} 30. f4 {[%clk 0:00:40.7]} 30... Rfe8
{[%clk 0:00:59.5]} 31. h6+ {[%clk 0:00:31.4]} 31... Kh8 {[%clk 0:00:42]} 32. Qf2
{[%clk 0:00:18.1]} 32... Rxe5 {[%clk 0:00:34.1]} 33. fxe5 {[%clk 0:00:19.1]}
33... Qxe5 {[%clk 0:00:35.5]} 34. Nf6 {[%clk 0:00:16.2]} 34... Rd8 {[%clk
0:00:28.7]} 35. Ng4 {[%clk 0:00:11.4]} 35... Qh5+ {[%clk 0:00:29]} 36. Bh3
{[%clk 0:00:12.4]} 36... Qf5 {[%clk 0:00:29.2]} 37. Qb2+ {[%clk 0:00:12.6]}
37... f6 {[%clk 0:00:30.8]} 38. Nxf6 {[%clk 0:00:13.7]} 1-0

[Event "*** Titled Tuesday Blitz"]
[Site "Chess.com"]
[Date "2018.10.02"]
[Round "7"]
[White "FearNoEvil12"]
[Black "xamax2000"]
[Result "0-1"]
[WhiteElo "2030"]
[BlackElo "2471"]
[TimeControl "180+2"]
[EndTime "14:34:02 PDT"]
[Termination "xamax2000 won by checkmate"]

1. e4 {[%clk 0:03:01.9]} 1... c5 {[%clk 0:02:49.3]} 2. Nc3 {[%clk 0:03:01.7]}
2... d6 {[%clk 0:02:46.7]} 3. f4 {[%clk 0:03:02.9]} 3... g6 {[%clk 0:02:46.8]}
4. Bc4 {[%clk 0:03:04.2]} 4... Bg7 {[%clk 0:02:48]} 5. Nf3 {[%clk 0:03:05.1]}
5... Nc6 {[%clk 0:02:49.3]} 6. f5 {[%clk 0:03:05.3]} 6... gxf5 {[%clk
0:02:39.6]} 7. d3 {[%clk 0:03:05.5]} 7... Nf6 {[%clk 0:02:34.3]} 8. O-O {[%clk
0:03:05.6]} 8... fxe4 {[%clk 0:02:32.5]} 9. dxe4 {[%clk 0:03:05.5]} 9... Be6
{[%clk 0:02:23]} 10. Bxe6 {[%clk 0:03:03.3]} 10... fxe6 {[%clk 0:02:24.9]} 11.
Ng5 {[%clk 0:03:04.2]} 11... Qd7 {[%clk 0:02:25.3]} 12. Bf4 {[%clk 0:02:59.7]}
12... e5 {[%clk 0:02:24.5]} 13. Be3 {[%clk 0:02:52]} 13... h6 {[%clk 0:02:22.3]}
14. Nf3 {[%clk 0:02:44.8]} 14... Nd4 {[%clk 0:02:23]} 15. Ne2 {[%clk 0:02:36.6]}
15... O-O-O {[%clk 0:02:05]} 16. c3 {[%clk 0:02:34.9]} 16... Nxf3+ {[%clk
0:02:04]} 17. Rxf3 {[%clk 0:02:34.8]} 17... Nxe4 {[%clk 0:01:59.6]} 18. Qc2
{[%clk 0:02:29.4]} 18... Ng5 {[%clk 0:01:59.1]} 19. Rg3 {[%clk 0:02:28.2]} 19...
Bf6 {[%clk 0:01:59.2]} 20. b4 {[%clk 0:02:24]} 20... Ne6 {[%clk 0:01:32]} 21.
Rd1 {[%clk 0:02:21.6]} 21... Qb5 {[%clk 0:01:23.5]} 22. a3 {[%clk 0:02:15.3]}
22... Kb8 {[%clk 0:01:17.8]} 23. bxc5 {[%clk 0:02:07.4]} 23... Nxc5 {[%clk
0:01:17.6]} 24. Rb1 {[%clk 0:02:06.5]} 24... Qc6 {[%clk 0:01:13.2]} 25. Rf3
{[%clk 0:01:47]} 25... Rhg8 {[%clk 0:01:11.7]} 26. Ng3 {[%clk 0:01:46.9]} 26...
h5 {[%clk 0:01:08.6]} 27. Rff1 {[%clk 0:01:34.1]} 27... h4 {[%clk 0:01:09.3]}
28. Nf5 {[%clk 0:01:33.8]} 28... Rg4 {[%clk 0:01:02.7]} 29. Rb2 {[%clk
0:01:29.1]} 29... Rdg8 {[%clk 0:01:02]} 30. Rf2 {[%clk 0:01:27.2]} 30... Ne4
{[%clk 0:00:59.8]} 31. Re2 {[%clk 0:01:25.3]} 31... Nxc3 {[%clk 0:01:00.1]} 32.
Rf2 {[%clk 0:01:21.4]} 32... Rc4 {[%clk 0:00:45.6]} 33. Qb3 {[%clk 0:01:13.3]}
33... Rc8 {[%clk 0:00:44.4]} 34. h3 {[%clk 0:01:06.6]} 34... Nd5 {[%clk
0:00:43.7]} 35. Bd2 {[%clk 0:00:55.5]} 35... e4 {[%clk 0:00:44.7]} 36. Rb1
{[%clk 0:00:47.8]} 36... Nb6 {[%clk 0:00:25]} 37. Ne3 {[%clk 0:00:40.8]} 37...
Rd4 {[%clk 0:00:23.1]} 38. a4 {[%clk 0:00:34.5]} 38... Rd3 {[%clk 0:00:23.3]}
39. Qb5 {[%clk 0:00:30]} 39... Qxb5 {[%clk 0:00:23.7]} 40. Rxb5 {[%clk 0:00:29]}
40... Bd4 {[%clk 0:00:24.2]} 41. Re2 {[%clk 0:00:25.2]} 41... Rxd2 {[%clk
0:00:25.2]} 42. Rxd2 {[%clk 0:00:21.8]} 42... Bxe3+ {[%clk 0:00:26.3]} 43. Kh2
{[%clk 0:00:20.5]} 43... Bf4+ {[%clk 0:00:25.3]} 44. Kg1 {[%clk 0:00:20.2]}
44... Rc1+ {[%clk 0:00:24]} 45. Kf2 {[%clk 0:00:20.4]} 45... e3+ {[%clk
0:00:24.4]} 46. Kf3 {[%clk 0:00:20.6]} 46... exd2 {[%clk 0:00:25.7]} 47. Kxf4
{[%clk 0:00:21.6]} 47... d1=Q {[%clk 0:00:26.4]} 48. Kf5 {[%clk 0:00:23]} 48...
Qh5+ {[%clk 0:00:26]} 49. Ke6 {[%clk 0:00:23]} 49... Re1+ {[%clk 0:00:27.1]} 50.
Re5 {[%clk 0:00:19.5]} 50... Rxe5# {[%clk 0:00:29]} 0-1

[Event "*** Titled Tuesday Blitz"]
[Site "Chess.com"]
[Date "2018.10.02"]
[Round "7"]
[White "Rodalquilar"]
[Black "plouarzel"]
[Result "1-0"]
[WhiteElo "2551"]
[BlackElo "2588"]
[TimeControl "180+2"]
[EndTime "14:34:07 PDT"]
[Termination "Rodalquilar won by checkmate"]

1. d4 {[%clk 0:03:01.9]} 1... d6 {[%clk 0:02:59.4]} 2. e4 {[%clk 0:03:02.3]}
2... Nf6 {[%clk 0:02:59.8]} 3. Nc3 {[%clk 0:03:03.8]} 3... e5 {[%clk 0:03:00.9]}
4. Nf3 {[%clk 0:03:03.7]} 4... Nbd7 {[%clk 0:03:01.9]} 5. Bc4 {[%clk 0:03:03.9]}
5... exd4 {[%clk 0:03:03]} 6. Nxd4 {[%clk 0:03:04.4]} 6... Nb6 {[%clk
0:03:04.5]} 7. Be2 {[%clk 0:03:05.7]} 7... Be7 {[%clk 0:03:05.5]} 8. O-O {[%clk
0:03:06.9]} 8... O-O {[%clk 0:03:07]} 9. Re1 {[%clk 0:03:07.3]} 9... c6 {[%clk
0:03:08.2]} 10. a4 {[%clk 0:03:06.9]} 10... a5 {[%clk 0:03:08.7]} 11. b3 {[%clk
0:03:08.2]} 11... d5 {[%clk 0:03:09.8]} 12. e5 {[%clk 0:03:08.4]} 12... Ne8
{[%clk 0:03:11.3]} 13. Bb2 {[%clk 0:03:09]} 13... g6 {[%clk 0:03:12.6]} 14. f4
{[%clk 0:03:08.5]} 14... Ng7 {[%clk 0:03:12.8]} 15. Kh1 {[%clk 0:02:59.3]} 15...
f6 {[%clk 0:03:13.8]} 16. exf6 {[%clk 0:02:29.7]} 16... Bxf6 {[%clk 0:03:15.7]}
17. Qd2 {[%clk 0:02:30.6]} 17... Nf5 {[%clk 0:03:08.4]} 18. Nd1 {[%clk
0:02:27.8]} 18... Bd7 {[%clk 0:02:35.8]} 19. Bf3 {[%clk 0:02:28.7]} 19... Nc8
{[%clk 0:02:34.7]} 20. Nxf5 {[%clk 0:02:28.5]} 20... Bxf5 {[%clk 0:02:33.4]} 21.
Bxf6 {[%clk 0:02:28.6]} 21... Qxf6 {[%clk 0:02:35.3]} 22. Ne3 {[%clk 0:02:29.8]}
22... Nd6 {[%clk 0:02:33.3]} 23. Nxf5 {[%clk 0:02:25.7]} 23... Nxf5 {[%clk
0:02:34.7]} 24. Re5 {[%clk 0:02:20.9]} 24... Nh4 {[%clk 0:02:28.3]} 25. Rf1
{[%clk 0:02:12.1]} 25... Kh8 {[%clk 0:02:12.2]} 26. Be2 {[%clk 0:02:03.1]} 26...
Rae8 {[%clk 0:02:08.4]} 27. Rxe8 {[%clk 0:01:26.7]} 27... Rxe8 {[%clk
0:02:10.3]} 28. Bd3 {[%clk 0:01:28.1]} 28... b6 {[%clk 0:02:03.3]} 29. f5 {[%clk
0:01:20.4]} 29... gxf5 {[%clk 0:01:43.4]} 30. g3 {[%clk 0:01:03.2]} 30... Ng6
{[%clk 0:01:44.2]} 31. Rxf5 {[%clk 0:01:04.3]} 31... Qe6 {[%clk 0:01:35.4]} 32.
Qg5 {[%clk 0:00:51.5]} 32... Ne5 {[%clk 0:01:03.9]} 33. Rf6 {[%clk 0:00:44.7]}
33... Qe7 {[%clk 0:00:59.6]} 34. Bxh7 {[%clk 0:00:43.1]} 34... Nf3 {[%clk
0:00:20.7]} 35. Qf4 {[%clk 0:00:11.3]} 35... Qe1+ {[%clk 0:00:19.4]} 36. Kg2
{[%clk 0:00:12.8]} 36... Qe2+ {[%clk 0:00:10.4]} 37. Kh3 {[%clk 0:00:14]} 37...
Qxh2+ {[%clk 0:00:08.6]} 38. Kg4 {[%clk 0:00:15.4]} 38... Ne5+ {[%clk
0:00:09.3]} 39. Kg5 {[%clk 0:00:12.1]} 39... Qxh7 {[%clk 0:00:04.8]} 40. Rh6
{[%clk 0:00:12.8]} 40... Rg8+ {[%clk 0:00:05.1]} 41. Kh5 {[%clk 0:00:13.8]}
41... Nf7 {[%clk 0:00:03.1]} 42. Qxf7 {[%clk 0:00:13.8]} 42... Qxh6+ {[%clk
0:00:03.6]} 43. Kxh6 {[%clk 0:00:14.8]} 43... Rxg3 {[%clk 0:00:05.5]} 44. Qf8+
{[%clk 0:00:15.9]} 44... Rg8 {[%clk 0:00:07.4]} 45. Qf6+ {[%clk 0:00:17.1]}
45... Rg7 {[%clk 0:00:09.3]} 46. Qxg7# {[%clk 0:00:18.6]} 1-0

[Event "*** Titled Tuesday Blitz"]
[Site "Chess.com"]
[Date "2018.10.02"]
[Round "7"]
[White "GCamachoMartinez"]
[Black "Ramosha"]
[Result "0-1"]
[WhiteElo "2289"]
[BlackElo "2474"]
[TimeControl "180+2"]
[EndTime "14:34:20 PDT"]
[Termination "Ramosha won by resignation"]

1. d4 {[%clk 0:03:01.9]} 1... e6 {[%clk 0:02:59.6]} 2. c4 {[%clk 0:03:00.7]}
2... d5 {[%clk 0:03:00.4]} 3. Nf3 {[%clk 0:03:00.2]} 3... Nf6 {[%clk 0:03:00.3]}
4. Nc3 {[%clk 0:02:59.5]} 4... Be7 {[%clk 0:03:00.4]} 5. Bf4 {[%clk 0:02:58.9]}
5... O-O {[%clk 0:03:00.8]} 6. e3 {[%clk 0:02:59.9]} 6... c5 {[%clk 0:03:01.3]}
7. dxc5 {[%clk 0:03:00.8]} 7... Bxc5 {[%clk 0:02:59.6]} 8. cxd5 {[%clk
0:03:01.9]} 8... exd5 {[%clk 0:02:59.3]} 9. Bd3 {[%clk 0:02:48.3]} 9... Nc6
{[%clk 0:02:59.7]} 10. O-O {[%clk 0:02:46.2]} 10... h6 {[%clk 0:02:57.4]} 11. h3
{[%clk 0:02:44.4]} 11... a6 {[%clk 0:02:57.6]} 12. Rc1 {[%clk 0:02:43.8]} 12...
d4 {[%clk 0:02:56.7]} 13. Na4 {[%clk 0:02:17.7]} 13... Ba7 {[%clk 0:02:53.9]}
14. exd4 {[%clk 0:02:18.4]} 14... Nxd4 {[%clk 0:02:54]} 15. Nxd4 {[%clk
0:02:19.2]} 15... Bxd4 {[%clk 0:02:44.8]} 16. Bc7 {[%clk 0:02:19]} 16... Qd5
{[%clk 0:01:31]} 17. Bc4 {[%clk 0:01:49.4]} 17... Qe4 {[%clk 0:01:31.3]} 18. Re1
{[%clk 0:01:21.5]} 18... Qh4 {[%clk 0:01:31.6]} 19. g3 {[%clk 0:01:15.5]} 19...
Bxf2+ {[%clk 0:01:19.3]} 20. Kxf2 {[%clk 0:01:16.4]} 20... Qxh3 {[%clk
0:01:20.4]} 21. Rg1 {[%clk 0:00:32.5]} 21... b5 {[%clk 0:00:49.2]} 22. Be2
{[%clk 0:00:29.3]} 22... Bb7 {[%clk 0:00:37.5]} 23. Bf3 {[%clk 0:00:29.9]} 23...
Bxf3 {[%clk 0:00:25.8]} 24. Qxf3 {[%clk 0:00:30.7]} 24... bxa4 {[%clk
0:00:24.5]} 25. g4 {[%clk 0:00:25.8]} 25... Qh4+ {[%clk 0:00:21.3]} 26. Bg3
{[%clk 0:00:25.3]} 26... Qxg4 {[%clk 0:00:19.7]} 27. Be5 {[%clk 0:00:16.1]}
27... Ne4+ {[%clk 0:00:14.9]} 28. Ke3 {[%clk 0:00:14.7]} 28... Qxf3+ {[%clk
0:00:15.4]} 29. Kxf3 {[%clk 0:00:15.7]} 29... Ng5+ {[%clk 0:00:16.4]} 30. Kg3
{[%clk 0:00:13.5]} 30... Rfe8 {[%clk 0:00:16.9]} 31. Bf4 {[%clk 0:00:13.7]}
31... Re4 {[%clk 0:00:16.8]} 32. Bxg5 {[%clk 0:00:14.3]} 32... hxg5 {[%clk
0:00:17.4]} 33. Rc7 {[%clk 0:00:14.2]} 33... Rd8 {[%clk 0:00:17.1]} 34. Rf1
{[%clk 0:00:14.3]} 34... Rd3+ {[%clk 0:00:17.2]} 35. Kg2 {[%clk 0:00:15.3]}
35... Re2+ {[%clk 0:00:17.8]} 36. Rf2 {[%clk 0:00:16.3]} 36... Rxf2+ {[%clk
0:00:18.9]} 37. Kxf2 {[%clk 0:00:18.2]} 37... Rd2+ {[%clk 0:00:20.1]} 38. Kg3
{[%clk 0:00:18.5]} 38... Rxb2 {[%clk 0:00:21.2]} 39. Ra7 {[%clk 0:00:17.9]}
39... Rxa2 {[%clk 0:00:21.7]} 40. Kg4 {[%clk 0:00:17.9]} 40... Rg2+ {[%clk
0:00:20.6]} 41. Kf5 {[%clk 0:00:18.8]} 41... g6+ {[%clk 0:00:19.4]} 42. Kf6
{[%clk 0:00:19.6]} 42... Rf2+ {[%clk 0:00:20.2]} 43. Kxg5 {[%clk 0:00:20.4]}
43... Kg7 {[%clk 0:00:21.3]} 44. Rxa6 {[%clk 0:00:21.1]} 44... Ra2 {[%clk
0:00:18.9]} 45. Ra7 {[%clk 0:00:21.6]} 45... Ra1 {[%clk 0:00:18.5]} 46. Kf4
{[%clk 0:00:20.9]} 46... a3 {[%clk 0:00:19.6]} 47. Kf3 {[%clk 0:00:21.5]} 47...
a2 {[%clk 0:00:20.7]} 48. Kg2 {[%clk 0:00:22.6]} 48... Kh6 {[%clk 0:00:17.7]}
0-1

[Event "*** Titled Tuesday Blitz"]
[Site "Chess.com"]
[Date "2018.10.02"]
[Round "7"]
[White "saraswathii"]
[Black "Alopekos"]
[Result "0-1"]
[WhiteElo "2319"]
[BlackElo "2435"]
[TimeControl "180+2"]
[EndTime "14:34:26 PDT"]
[Termination "Alopekos won by resignation"]

1. e4 {[%clk 0:03:01.9]} 1... e5 {[%clk 0:03:00.6]} 2. d3 {[%clk 0:03:02.6]}
2... Nc6 {[%clk 0:02:59.3]} 3. Nf3 {[%clk 0:03:03.3]} 3... Nf6 {[%clk
0:02:59.1]} 4. g3 {[%clk 0:03:03.3]} 4... d5 {[%clk 0:03:00]} 5. exd5 {[%clk
0:03:03.4]} 5... Nxd5 {[%clk 0:02:59.4]} 6. Bg2 {[%clk 0:03:02.4]} 6... Bg4
{[%clk 0:02:26.3]} 7. O-O {[%clk 0:03:01.6]} 7... Qd7 {[%clk 0:02:26.5]} 8. Re1
{[%clk 0:02:51.7]} 8... O-O-O {[%clk 0:02:26.4]} 9. Nbd2 {[%clk 0:02:50.7]} 9...
f6 {[%clk 0:02:14.5]} 10. Nc4 {[%clk 0:02:48.4]} 10... Bc5 {[%clk 0:02:14.3]}
11. Ne3 {[%clk 0:02:48.5]} 11... Bh3 {[%clk 0:01:57.1]} 12. Bxh3 {[%clk
0:02:20.5]} 12... Qxh3 {[%clk 0:01:59]} 13. Nxd5 {[%clk 0:02:21.4]} 13... Rxd5
{[%clk 0:01:59.2]} 14. Be3 {[%clk 0:02:22.4]} 14... e4 {[%clk 0:01:49]} 15. Bxc5
{[%clk 0:02:00.7]} 15... exf3 {[%clk 0:01:47.8]} 16. Qxf3 {[%clk 0:01:51.6]}
16... Rxc5 {[%clk 0:01:48]} 17. c3 {[%clk 0:01:50.8]} 17... Re5 {[%clk
0:01:33.6]} 18. d4 {[%clk 0:01:49.1]} 18... Ree8 {[%clk 0:01:13.6]} 19. b4
{[%clk 0:01:42.5]} 19... Qd7 {[%clk 0:01:08.5]} 20. a4 {[%clk 0:01:37.6]} 20...
Rxe1+ {[%clk 0:01:04.6]} 21. Rxe1 {[%clk 0:01:37.3]} 21... Re8 {[%clk
0:01:06.5]} 22. Rxe8+ {[%clk 0:01:37.4]} 22... Qxe8 {[%clk 0:01:06.2]} 23. Qf5+
{[%clk 0:01:33]} 23... Qd7 {[%clk 0:01:01.1]} 24. Qxh7 {[%clk 0:01:32.7]} 24...
Nd8 {[%clk 0:01:01.6]} 25. b5 {[%clk 0:01:27.6]} 25... b6 {[%clk 0:00:52.2]} 26.
Qe4 {[%clk 0:01:23.6]} 26... Kb8 {[%clk 0:00:53.1]} 27. Kg2 {[%clk 0:01:16.6]}
27... Nb7 {[%clk 0:00:52.7]} 28. h4 {[%clk 0:01:12.2]} 28... Nd6 {[%clk
0:00:53.8]} 29. Qh7 {[%clk 0:01:11.4]} 29... a6 {[%clk 0:00:40.7]} 30. bxa6
{[%clk 0:00:51.1]} 30... Ka7 {[%clk 0:00:41]} 31. Qd3 {[%clk 0:00:45.3]} 31...
Qxa4 {[%clk 0:00:39.9]} 32. Qg6 {[%clk 0:00:44.2]} 32... Qd7 {[%clk 0:00:30.5]}
33. Qd3 {[%clk 0:00:41.9]} 33... Qf5 {[%clk 0:00:25.8]} 34. Qf1 {[%clk
0:00:26.4]} 34... Qb5 {[%clk 0:00:17.4]} 35. Qe1 {[%clk 0:00:24.5]} 35... Kxa6
{[%clk 0:00:10]} 36. Qe7 {[%clk 0:00:23]} 36... Qd5+ {[%clk 0:00:11.1]} 37. Kh3
{[%clk 0:00:22.2]} 37... Qf7 {[%clk 0:00:11.4]} 38. Qe2+ {[%clk 0:00:22.3]}
38... Kb7 {[%clk 0:00:11.6]} 39. Qf3+ {[%clk 0:00:22.3]} 39... Kb8 {[%clk
0:00:12]} 40. h5 {[%clk 0:00:21.5]} 40... Qd7+ {[%clk 0:00:11.8]} 41. g4 {[%clk
0:00:21.9]} 41... Nf7 {[%clk 0:00:12.3]} 42. Kg2 {[%clk 0:00:18.1]} 42... Ng5
{[%clk 0:00:12.7]} 43. Qf4 {[%clk 0:00:17.9]} 43... Qc6+ {[%clk 0:00:13.9]} 44.
f3 {[%clk 0:00:18.6]} 44... Qxc3 {[%clk 0:00:14.7]} 45. h6 {[%clk 0:00:19.6]}
45... gxh6 {[%clk 0:00:15.6]} 46. Qxf6 {[%clk 0:00:20.5]} 46... Qxf3+ {[%clk
0:00:09.7]} 47. Qxf3 {[%clk 0:00:20.9]} 47... Nxf3 {[%clk 0:00:11.6]} 48. Kxf3
{[%clk 0:00:22.6]} 48... b5 {[%clk 0:00:12]} 49. Ke4 {[%clk 0:00:23.7]} 49...
Kb7 {[%clk 0:00:11.5]} 50. Kd5 {[%clk 0:00:25]} 50... Kb6 {[%clk 0:00:10.1]} 0-1